[Event "European Womens-ch 2025"]
[Site "Rhodes"]
[Date "2025.04.01"]
[Round "2.59"]
[White "Mitraka, Chrysoula-Paraskevi"]
[Black "Koridze, Lile"]
[Result "0-1"]
[Annotator "RC"]
[ECO "E35"]
[WhiteElo "1820"]
[BlackElo "2115"]
[PlyCount "64"]
[EventDate "2025.03.29"]
[EventType "swiss"]
[EventCountry "GRE"]
[SourceTitle "playchess.com"]
[Source "ChessBase"]
[SourceQuality "1"]
[TimeControl "40/5400+30:1800+30"]

1. d4 {[%emt 0:00:24]} Nf6 {[%emt 0:00:32]} 2. c4 {[%emt 0:00:10]} e6 {[%emt 0:00:03]} 3. Nc3 {[%emt 0:00:12]} Bb4 {[%emt 0:00:03]} 4. Qc2 {[%emt 1:31:44]} d5 {[%emt 0:04:19]} 5. cxd5 {[%emt 0:00:00]} exd5 {[%emt 0:01:20]} 6. Bf4 {[%emt 0:00:00]} O-O {[%emt 0:04:55]} 7. e3 {[%emt 0:00:00]} Re8 {[%emt 0:06:39]} 8. Bd3 {[%emt 0:00:00]} c5 {[%emt 0:08:55]} 9. dxc5 {[%emt 0:00:00]} d4 {[%emt 0:05:25]} 10. O-O-O {[%emt 0:00:00]} Nc6 {[%emt 0:12:28]} 11. Nge2 Bxc5 {[%emt 0:07:26]} 12. exd4 Bb6 {[%emt 0:05:25]} 13. a3 Na5 {[%emt 0:39:30]} 14. b4 {[%emt 0:00:00]} Nc6 {[%emt 0:00:00]} 15. Bc4 Bg4 {[%emt 0:01:00]} 16. f3 {[%emt 0:00:00]} Bh5 {[%emt 0:00:30]} 17. Be5 {[%emt 0:00:00]} Rc8 {[%emt 0:00:00]} 18. Qb3 Qe7 {[%emt 0:00:00]} 19. Bf4 a5 {[%emt 0:00:00]} 20. b5 a4 {[%emt 0:02:00]} 21. Qb2 {[%emt 0:08:30]} Nxd4 {[%emt 0:00:00]} 22. Bxf7+ {[%emt 0:00:00]} Bxf7 {[%emt 0:00:00]} 23. Nxd4 {[%emt 0:00:00]} Nd5 {[%emt 0:00:00]} 24. Nf5 {[%emt 0:00:32]} Qf6 {[%emt 0:00:00]} 25. Rxd5 {[%emt 0:00:41]} Rxc3+ {[%emt 0:00:00]} 26. Kd2 {[%emt 0:00:38]} Rd3+ {[%emt 0:00:00]} 27. Kxd3 {[%emt 0:00:26]} Qxb2 {[%emt 0:00:00]} 28. Rd6 {[%emt 0:00:32]} Qe2+ {[%emt 0:00:00]} 29. Kc3 {[%emt 0:00:13]} Rc8+ {[%emt 0:00:00]} 30. Rc6 {[%emt 0:00:43]} bxc6 {[%emt 0:00:00]} 31. Nd6 {[%emt 0:00:39]} Ba5+ {[%emt 0:00:00]} 32. Kd4 {[%emt 0:00:15]} c5# {[%emt 0:00:00]} 0-1

[Event "European Womens-ch 2025"]
[Site "Rhodes"]
[Date "2025.04.01"]
[Round "2.61"]
[White "Paasikangas, Johanna"]
[Black "Bania, Eleni"]
[Result "1-0"]
[Annotator "RC"]
[ECO "B45"]
[WhiteElo "2106"]
[BlackElo "1809"]
[PlyCount "65"]
[EventDate "2025.03.29"]
[EventType "swiss"]
[EventCountry "GRE"]
[SourceTitle "playchess.com"]
[Source "ChessBase"]
[SourceQuality "1"]
[TimeControl "40/5400+30:1800+30"]

1. e4 {[%emt 0:00:06]} c5 {[%emt 0:00:06]} 2. Nf3 {[%emt 0:00:40]} e6 {[%emt 0:00:07]} 3. d4 {[%emt 0:01:03]} cxd4 {[%emt 0:00:06]} 4. Nxd4 {[%emt 0:00:05]} Nf6 {[%emt 0:00:07]} 5. Nc3 {[%emt 0:00:08]} Nc6 {[%emt 0:00:07]} 6. a3 {[%emt 0:01:39]} Be7 {[%emt 0:13:41]} 7. Nxc6 {[%emt 0:06:06]} bxc6 {[%emt 0:05:43]} 8. e5 {[%emt 0:02:45]} Nd5 {[%emt 0:00:28]} 9. Qg4 {[%emt 0:09:26]} g6 {[%emt 0:12:09]} 10. Nxd5 {[%emt 0:04:19]} cxd5 {[%emt 0:01:45]} 11. Bd3 {[%emt 0:00:56]} Ba6 {[%emt 0:08:05]} 12. O-O {[%emt 0:07:22]} Bxd3 {[%emt 0:04:19]} 13. cxd3 {[%emt 0:00:02]} h5 {[%emt 0:07:06]} 14. Qe2 {[%emt 0:07:48]} Kf8 {[%emt 0:04:47]} 15. b4 {[%emt 0:03:15]} h4 {[%emt 0:09:44]} 16. h3 {[%emt 0:03:51]} Kg7 {[%emt 0:04:57]} 17. d4 {[%emt 0:01:16]} Rc8 {[%emt 0:03:14]} 18. Be3 {[%emt 0:05:26]} Qb6 {[%emt 0:02:01]} 19. Rfb1 {[%emt 0:13:35]} Rc4 {[%emt 0:01:18]} 20. Rb2 {[%emt 0:01:19]} Rhc8 {[%emt 0:00:57]} 21. Rab1 {[%emt 0:01:24]} a6 {[%emt 0:02:07]} 22. Qd1 {[%emt 0:04:38]} Qc6 {[%emt 0:02:01]} 23. a4 {[%emt 0:01:46]} Qb6 {[%emt 0:04:30]} 24. b5 {[%emt 0:02:13]} a5 {[%emt 0:01:01]} 25. Ra2 {[%emt 0:04:31]} Bb4 {[%emt 0:01:52]} 26. Qg4 {[%emt 0:02:05]} Be7 {[%emt 0:01:17]} 27. Rd1 {[%emt 0:02:26]} Qd8 {[%emt 0:01:32]} 28. Qe2 {[%emt 0:03:39]} Bb4 {[%emt 0:02:46]} 29. Rd3 {[%emt 0:00:55]} Qb6 {[%emt 0:02:21]} 30. Bg5 {[%emt 0:01:30]} Rxd4 {[%emt 0:00:29]} 31. Be3 {[%emt 0:03:35]} Re4 {[%emt 0:02:11]} 32. Bxb6 {[%emt 0:00:25]} Rxe2 {[%emt 0:00:08]} 33. Rxe2 {[%emt 0:06:46]} 1-0

[Event "European Womens-ch 2025"]
[Site "Rhodes"]
[Date "2025.04.01"]
[Round "2.62"]
[White "Saraci, Ndriqona"]
[Black "Zagorac, Lara"]
[Result "0-1"]
[Annotator "RC"]
[ECO "C68"]
[WhiteElo "1692"]
[BlackElo "2106"]
[PlyCount "90"]
[EventDate "2025.03.29"]
[EventType "swiss"]
[EventCountry "GRE"]
[SourceTitle "playchess.com"]
[Source "ChessBase"]
[SourceQuality "1"]
[TimeControl "40/5400+30:1800+30"]

1. e4 {[%emt 0:00:05]} e5 {[%emt 0:00:11]} 2. Nf3 {[%emt 0:00:20]} Nc6 {[%emt 0:00:11]} 3. Bb5 {[%emt 0:00:36]} a6 {[%emt 0:00:25]} 4. Bxc6 {[%emt 0:00:52]} dxc6 {[%emt 0:00:17]} 5. O-O {[%emt 0:00:58]} Bg4 {[%emt 0:02:13]} 6. h3 {[%emt 0:01:16]} h5 {[%emt 0:01:13]} 7. c3 {[%emt 0:01:02]} Qf6 {[%emt 0:03:56]} 8. d4 {[%emt 0:02:30]} Bxf3 {[%emt 0:05:58]} 9. Qxf3 {[%emt 0:00:42]} exd4 {[%emt 0:02:45]} 10. cxd4 {[%emt 0:01:53]} O-O-O {[%emt 0:04:26]} 11. Qxf6 {[%emt 0:12:31]} Nxf6 {[%emt 0:03:27]} 12. e5 {[%emt 0:02:27]} Nd5 {[%emt 0:02:48]} 13. Nc3 {[%emt 0:14:05]} c5 {[%emt 0:23:04]} 14. Rd1 {[%emt 0:11:45]} Nb4 {[%emt 0:07:15]} 15. dxc5 {[%emt 0:13:13]} Rxd1+ {[%emt 0:02:16]} 16. Nxd1 {[%emt 0:00:12]} Bxc5 {[%emt 0:01:09]} 17. Bf4 {[%emt 0:05:58]} Nd3 {[%emt 0:02:05]} 18. Be3 {[%emt 0:04:25]} Bxe3 {[%emt 0:04:37]} 19. Nxe3 {[%emt 0:00:44]} Nxe5 {[%emt 0:01:52]} 20. Rd1 {[%emt 0:01:04]} Re8 {[%emt 0:05:06]} 21. Nd5 {[%emt 0:02:48]} c6 {[%emt 0:03:34]} 22. Ne3 {[%emt 0:01:09]} Kc7 {[%emt 0:01:19]} 23. Rd4 {[%emt 0:01:47]} b5 {[%emt 0:01:32]} 24. Rh4 {[%emt 0:04:35]} g6 {[%emt 0:00:35]} 25. Re4 {[%emt 0:01:41]} f5 {[%emt 0:03:22]} 26. Rd4 {[%emt 0:01:12]} Rf8 {[%emt 0:01:21]} 27. f4 {[%emt 0:00:55]} Nd7 {[%emt 0:00:49]} 28. b4 {[%emt 0:02:01]} Re8 {[%emt 0:00:56]} 29. Kf2 {[%emt 0:00:15]} Nf6 {[%emt 0:01:14]} 30. Kf3 {[%emt 0:02:38]} Ne4 {[%emt 0:03:19]} 31. Nd1 {[%emt 0:04:16]} Nd6 {[%emt 0:00:49]} 32. Ne3 {[%emt 0:00:35]} a5 {[%emt 0:01:50]} 33. a3 {[%emt 0:01:32]} Ra8 {[%emt 0:01:37]} 34. Nc2 {[%emt 0:03:00]} axb4 {[%emt 0:00:42]} 35. axb4 {[%emt 0:01:00]} Ra2 {[%emt 0:00:35]} 36. Ne1 {[%emt 0:00:30]} Ne4 {[%emt 0:00:52]} 37. Nd3 {[%emt 0:00:58]} Nd2+ {[%emt 0:02:35]} 38. Ke3 {[%emt 0:00:43]} Nb3 {[%emt 0:00:17]} 39. Ne5 {[%emt 0:00:32]} Nxd4 {[%emt 0:00:10]} 40. Kxd4 {[%emt 0:00:00]} Rxg2 {[%emt 0:00:00]} 41. Kc5 {[%emt 0:00:40]} Rh2 {[%emt 0:01:14]} 42. Nxg6 {[%emt 0:00:26]} Rxh3 {[%emt 0:00:26]} 43. Ne7 {[%emt 0:00:15]} Rc3+ {[%emt 0:00:15]} 44. Kd4 {[%emt 0:00:38]} Rc4+ {[%emt 0:00:13]} 45. Ke5 {[%emt 0:00:39]} Re4+ {[%emt 0:00:09]} 0-1

[Event "European Womens-ch 2025"]
[Site "Rhodes"]
[Date "2025.04.01"]
[Round "2.63"]
[White "Tsetskhladze, Mariam"]
[Black "Recica, Jona"]
[Result "1-0"]
[Annotator "RC"]
[ECO "C78"]
[WhiteElo "2105"]
[BlackElo "1716"]
[PlyCount "99"]
[EventDate "2025.03.29"]
[EventType "swiss"]
[EventCountry "GRE"]
[SourceTitle "playchess.com"]
[Source "ChessBase"]
[SourceQuality "1"]
[TimeControl "40/5400+30:1800+30"]

1. e4 {[%emt 0:00:21]} e5 {[%emt 0:00:23]} 2. Nf3 {[%emt 0:00:14]} Nc6 {[%emt 0:00:08]} 3. Bb5 {[%emt 0:00:13]} a6 {[%emt 0:00:07]} 4. Ba4 {[%emt 0:00:04]} Nf6 {[%emt 1:31:52]} 5. O-O {[%emt 0:00:20]} b5 {[%emt 0:00:00]} 6. Bb3 {[%emt 1:32:18]} Bc5 {[%emt 0:00:00]} 7. a4 {[%emt 0:00:30]} Bb7 {[%emt 0:00:00]} 8. d3 h6 {[%emt 0:02:00]} 9. Nc3 {[%emt 0:01:00]} b4 {[%emt 0:00:30]} 10. Ne2 {[%emt 0:00:30]} d6 {[%emt 0:00:30]} 11. a5 {[%emt 0:00:30]} O-O {[%emt 0:00:30]} 12. Be3 {[%emt 0:00:30]} Ba7 {[%emt 0:00:00]} 13. Qd2 Bxe3 {[%emt 0:01:00]} 14. fxe3 {[%emt 0:01:00]} Rb8 {[%emt 0:00:30]} 15. Ng3 {[%emt 0:00:30]} Ne7 {[%emt 0:00:00]} 16. Nh4 {[%emt 0:00:00]} d5 {[%emt 0:00:00]} 17. Qe2 {[%emt 0:00:00]} Bc8 {[%emt 0:00:00]} 18. exd5 {[%emt 0:00:00]} Nfxd5 {[%emt 0:00:00]} 19. Nhf5 {[%emt 0:00:00]} Nxf5 {[%emt 0:02:30]} 20. Nxf5 {[%emt 0:00:00]} c6 {[%emt 0:00:00]} 21. g3 {[%emt 0:00:00]} Qg5 {[%emt 0:00:00]} 22. e4 {[%emt 0:00:00]} Nf4 {[%emt 0:00:00]} 23. Qf3 Ng6 {[%emt 0:02:00]} 24. h4 {[%emt 0:00:00]} Qd8 {[%emt 0:00:00]} 25. Qg4 {[%emt 0:00:00]} Kh7 {[%emt 0:00:00]} 26. h5 {[%emt 0:00:00]} Bxf5 {[%emt 0:00:00]} 27. exf5 {[%emt 0:00:00]} Nh8 {[%emt 0:00:00]} 28. f6 {[%emt 0:00:00]} Qd4+ {[%emt 0:00:00]} 29. Qxd4 {[%emt 0:00:00]} exd4 {[%emt 0:00:00]} 30. Bc4 {[%emt 0:01:35]} Ra8 {[%emt 0:00:00]} 31. fxg7 {[%emt 0:00:11]} Kxg7 {[%emt 0:00:00]} 32. Rf4 {[%emt 0:00:24]} Rfd8 {[%emt 0:00:00]} 33. Raf1 {[%emt 0:00:15]} Rd7 {[%emt 0:00:00]} 34. Rf6 {[%emt 0:00:08]} Rc7 {[%emt 0:00:00]} 35. Rd6 {[%emt 0:00:24]} Re8 {[%emt 0:01:35]} 36. Rff6 {[%emt 0:03:48]} Re5 {[%emt 0:00:35]} 37. Rxh6 {[%emt 0:00:35]} Rxa5 {[%emt 0:00:59]} 38. Rxc6 {[%emt 0:00:35]} Rxc6 {[%emt 0:00:10]} 39. Rxc6 {[%emt 0:00:03]} Ra1+ {[%emt 0:01:00]} 40. Kg2 {[%emt 0:00:00]} a5 {[%emt 0:00:00]} 41. Ra6 {[%emt 0:04:24]} a4 {[%emt 0:03:14]} 42. Rb6 {[%emt 0:03:21]} Rc1 {[%emt 0:04:07]} 43. Rxb4 {[%emt 0:00:37]} Rxc2+ {[%emt 0:00:06]} 44. Kf3 {[%emt 0:28:10]} Kh6 {[%emt 0:03:51]} 45. g4 {[%emt 0:00:00]} f6 {[%emt 0:01:59]} 46. Rb6 {[%emt 0:00:00]} Kg7 {[%emt 0:00:35]} 47. Rb7+ {[%emt 0:00:00]} Kf8 {[%emt 0:23:49]} 48. Rh7 {[%emt 0:00:00]} Rxc4 {[%emt 0:00:00]} 49. dxc4 {[%emt 0:00:00]} Nf7 {[%emt 0:01:00]} 50. Rxf7+ {[%emt 0:00:00]} 1-0

[Event "European Womens-ch 2025"]
[Site "Rhodes"]
[Date "2025.04.01"]
[Round "2.64"]
[White "Sivanandan, Bodhana"]
[Black "Korinioti, Myrto"]
[Result "1-0"]
[Annotator "NA RC"]
[ECO "B31"]
[WhiteElo "2073"]
[BlackElo "1667"]
[PlyCount "89"]
[EventDate "2025.03.29"]
[EventType "swiss"]
[EventCountry "GRE"]
[SourceTitle "playchess.com"]
[Source "ChessBase"]
[SourceQuality "1"]
[TimeControl "40/5400+30:1800+30"]

1. e4 {[%emt 0:04:50]} c5 {[%emt 0:00:20]} 2. Nf3 {[%emt 0:00:15]} Nc6 {[%emt 0:00:09]} 3. Bb5 {[%emt 0:00:12]} g6 {[%emt 0:00:22]} 4. O-O {[%emt 0:00:15]} Bg7 {[%emt 0:00:07]} 5. c3 {[%emt 0:00:28]} Nf6 {[%emt 0:00:25]} 6. Re1 {[%emt 0:00:28]} O-O {[%emt 0:00:16]} 7. d4 {[%emt 0:00:17]} d5 {[%emt 0:00:23]} 8. e5 {[%emt 0:00:34]} Ne4 {[%emt 0:00:27]} 9. Bxc6 {[%emt 0:00:27]} bxc6 {[%emt 0:00:09]} 10. Be3 {[%emt 0:00:40]} cxd4 {[%emt 0:00:14]} 11. cxd4 {[%emt 0:00:10]} f6 {[%emt 0:00:19]} 12. exf6 {[%emt 0:00:53]} exf6 {[%emt 0:00:10]} 13. Qc1 {[%emt 0:02:09]} Bd7 {[%emt 0:01:38]} 14. Nc3 {[%emt 0:00:25]} Nxc3 {[%emt 0:15:56]} 15. Qxc3 {[%emt 0:00:55]} Rb8 {[%emt 0:00:35]} 16. b3 {[%emt 0:04:49]} g5 {[%emt 0:06:12]} 17. Bc1 {[%emt 0:03:06]} Rf7 {[%emt 0:11:40]} 18. Ba3 {[%emt 0:04:27]} Bf8 {[%emt 0:00:28]} 19. Bxf8 {[%emt 0:00:24]} Qxf8 {[%emt 0:00:31]} 20. Rac1 {[%emt 0:01:09]} h5 {[%emt 0:02:13]} 21. h4 {[%emt 0:02:50]} g4 {[%emt 0:10:13]} 22. Nd2 {[%emt 0:02:17]} Rg7 {[%emt 0:03:47]} 23. Qc5 {[%emt 0:01:52]} Qxc5 {[%emt 0:01:53]} 24. dxc5 {[%emt 0:01:11]} g3 {[%emt 0:10:24]} 25. Re3 {[%emt 0:04:15]} gxf2+ {[%emt 0:01:49]} 26. Kxf2 {[%emt 0:00:10]} Rb4 {[%emt 0:07:10]} 27. g3 {[%emt 0:01:09]} Rbg4 {[%emt 0:04:00]} 28. Rf3 {[%emt 0:04:31]} R4g6 {[%emt 0:00:27]} 29. Re1 {[%emt 0:01:33]} Kf8 {[%emt 0:05:08]} 30. Ree3 {[%emt 0:00:52]} Re7 {[%emt 0:02:10]} 31. Rxe7 {[%emt 0:05:27]} Kxe7 {[%emt 0:00:11]} 32. Re3+ {[%emt 0:10:54]} Kf7 {[%emt 0:01:00]} 33. Nf3 {[%emt 0:01:08]} Rg4 {[%emt 0:00:49]} 34. Rd3 {[%emt 0:04:14]} Bf5 {[%emt 0:01:00]} 35. Rd2 {[%emt 0:16:40]} Bd7 {[%emt 0:05:08]} 36. Nd4 {[%emt 0:01:07]} Ke7 {[%emt 0:01:52]} 37. Ne2 {[%emt 0:01:36]} Rg7 {[%emt 0:02:19]} 38. Rd4 {[%emt 0:00:59]} Rg4 {[%emt 0:00:51]} 39. Nf4 {[%emt 0:00:11]} a6 {[%emt 0:03:22]} 40. Rb4 {[%emt 0:00:00]} Be8 {[%emt 0:00:00]} 41. Rb7+ {[%emt 0:09:15]} Kd8 {[%emt 0:07:55]} 42. Ra7 {[%emt 0:00:43]} d4 {[%emt 0:01:12]} 43. Rxa6 {[%emt 0:01:10]} Kc7 {[%emt 0:01:12]} 44. Ra7+ {[%emt 0:01:56]} Kb8 {[%emt 0:00:49]} 45. Re7 {[%emt 0:00:56]} 1-0

[Event "European Womens-ch 2025"]
[Site "Rhodes"]
[Date "2025.04.01"]
[Round "2.65"]
[White "Kaka, Rengina Tsampika"]
[Black "Grapsa, Georgia"]
[Result "0-1"]
[Annotator "NA RC"]
[ECO "A45"]
[WhiteElo "1509"]
[BlackElo "2065"]
[PlyCount "116"]
[EventDate "2025.03.29"]
[EventType "swiss"]
[EventCountry "GRE"]
[SourceTitle "playchess.com"]
[Source "ChessBase"]
[SourceQuality "1"]
[TimeControl "40/5400+30:1800+30"]

1. d4 {[%emt 0:00:07]} Nf6 {[%emt 0:00:02]} 2. Bf4 {[%emt 0:00:22]} e6 {[%emt 0:00:05]} 3. e3 {[%emt 0:00:33]} c5 {[%emt 0:00:04]} 4. dxc5 {[%emt 0:03:21]} Bxc5 {[%emt 0:00:28]} 5. Nc3 {[%emt 0:01:31]} O-O {[%emt 0:01:03]} 6. Nb5 {[%emt 0:04:57]} Ne8 {[%emt 0:06:57]} 7. Bd3 {[%emt 0:04:48]} f5 {[%emt 0:00:48]} 8. Nf3 {[%emt 0:01:56]} Nc6 {[%emt 0:08:20]} 9. O-O {[%emt 0:02:06]} a6 {[%emt 0:04:05]} 10. Na3 {[%emt 0:07:21]} b5 {[%emt 0:05:08]} 11. c3 {[%emt 0:03:12]} Bb7 {[%emt 0:02:06]} 12. b4 {[%emt 0:06:34]} Be7 {[%emt 0:03:52]} 13. Be2 {[%emt 0:03:41]} Bf6 {[%emt 0:03:47]} 14. Qb3 {[%emt 0:02:47]} Kh8 {[%emt 0:02:03]} 15. Rfd1 {[%emt 0:02:33]} Qe7 {[%emt 0:00:37]} 16. Rac1 {[%emt 0:02:33]} d5 {[%emt 0:03:20]} 17. Nc2 {[%emt 0:04:28]} e5 {[%emt 0:05:38]} 18. Bg3 {[%emt 0:04:56]} Nc7 {[%emt 0:00:48]} 19. Na1 {[%emt 0:05:34]} g5 {[%emt 0:01:40]} 20. h3 {[%emt 0:01:42]} h5 {[%emt 0:04:55]} 21. Re1 {[%emt 0:03:52]} h4 {[%emt 0:02:26]} 22. Bh2 {[%emt 0:00:51]} Qg7 {[%emt 0:00:44]} 23. Nxg5 {[%emt 0:13:50]} Bxg5 {[%emt 0:02:32]} 24. Kf1 {[%emt 0:02:05]} Rg8 {[%emt 0:01:16]} 25. g4 {[%emt 0:02:26]} hxg3 {[%emt 0:00:14]} 26. fxg3 {[%emt 0:01:29]} Bxe3 {[%emt 0:00:37]} 27. Rc2 {[%emt 0:01:16]} Bf4 {[%emt 0:00:43]} 28. Bh5 {[%emt 0:02:11]} Bxg3 {[%emt 0:01:03]} 29. Bxg3 {[%emt 0:00:37]} Qxg3 {[%emt 0:00:04]} 30. Ke2 {[%emt 0:00:53]} e4 {[%emt 0:02:54]} 31. Bf7 {[%emt 0:02:01]} Qf3+ {[%emt 0:00:11]} 32. Kd2 {[%emt 0:00:45]} Rg2+ {[%emt 0:01:09]} 33. Kc1 {[%emt 0:01:31]} Ne5 {[%emt 0:00:05]} 34. Rd1 {[%emt 0:02:37]} Nd3+ {[%emt 0:01:14]} 35. Rxd3 {[%emt 0:01:32]} exd3 {[%emt 0:00:04]} 36. Rxg2 {[%emt 0:00:47]} Qxg2 {[%emt 0:00:04]} 37. Qd1 {[%emt 0:00:34]} Qe2 {[%emt 0:01:03]} 38. Bh5 {[%emt 0:00:50]} Qxd1+ {[%emt 0:00:12]} 39. Kxd1 {[%emt 0:00:49]} Ne6 {[%emt 0:00:19]} 40. Nb3 {[%emt 0:00:00]} Kg7 {[%emt 0:00:00]} 41. Kd2 {[%emt 0:01:18]} Rd8 {[%emt 0:01:45]} 42. Bf3 {[%emt 0:00:39]} Nf4 {[%emt 0:02:15]} 43. Ke3 {[%emt 0:01:16]} d4+ {[%emt 0:01:33]} 44. Kxf4 {[%emt 0:02:03]} Bxf3 {[%emt 0:00:21]} 45. cxd4 {[%emt 0:01:28]} d2 {[%emt 0:02:59]} 46. Nxd2 {[%emt 0:00:40]} Rxd4+ {[%emt 0:00:04]} 47. Ke3 {[%emt 0:00:20]} Rxd2 {[%emt 0:00:04]} 48. Kxd2 {[%emt 0:00:26]} Bd5 {[%emt 0:00:04]} 49. a3 {[%emt 0:00:18]} Kf6 {[%emt 0:00:10]} 50. h4 {[%emt 0:00:38]} f4 {[%emt 0:00:12]} 51. Ke1 {[%emt 0:00:24]} Kf5 {[%emt 0:00:05]} 52. Kf1 {[%emt 0:00:22]} Kg4 {[%emt 0:00:03]} 53. h5 {[%emt 0:00:45]} Kxh5 {[%emt 0:00:07]} 54. Kf2 {[%emt 0:00:24]} Kg4 {[%emt 0:00:02]} 55. Ke2 {[%emt 0:00:21]} Kg3 {[%emt 0:00:04]} 56. Kf1 {[%emt 0:00:30]} f3 {[%emt 0:00:03]} 57. Kg1 {[%emt 0:00:14]} f2+ {[%emt 0:00:04]} 58. Kf1 {[%emt 0:00:17]} Bc4# {[%emt 0:00:35]} 0-1

[Event "European Womens-ch 2025"]
[Site "Rhodes"]
[Date "2025.04.01"]
[Round "2.66"]
[White "Rida, Ruqayyah"]
[Black "Lamprianou, Marianna"]
[Result "1-0"]
[Annotator "NA RC"]
[ECO "C54"]
[WhiteElo "2065"]
[BlackElo "1498"]
[PlyCount "93"]
[EventDate "2025.03.29"]
[EventType "swiss"]
[EventCountry "GRE"]
[SourceTitle "playchess.com"]
[Source "ChessBase"]
[SourceQuality "1"]
[TimeControl "40/5400+30:1800+30"]

1. e4 {[%emt 0:00:02]} e5 {[%emt 0:00:11]} 2. Nf3 {[%emt 0:00:12]} Nc6 {[%emt 0:00:23]} 3. Bc4 {[%emt 0:00:29]} Bc5 {[%emt 0:00:38]} 4. c3 {[%emt 0:00:14]} Nf6 {[%emt 0:01:00]} 5. d3 {[%emt 0:00:18]} h6 {[%emt 0:00:55]} 6. a4 {[%emt 0:01:01]} a5 {[%emt 0:02:53]} 7. O-O {[%emt 0:02:14]} O-O {[%emt 0:02:07]} 8. Re1 {[%emt 0:03:30]} d6 {[%emt 0:04:19]} 9. h3 {[%emt 0:05:34]} Re8 {[%emt 0:01:42]} 10. Nbd2 {[%emt 0:02:13]} Bd7 {[%emt 0:02:32]} 11. Bb3 {[%emt 0:02:57]} Be6 {[%emt 0:07:11]} 12. Nc4 {[%emt 0:09:24]} Qd7 {[%emt 0:08:21]} 13. Be3 {[%emt 0:06:48]} Ba7 {[%emt 0:06:15]} 14. Bxa7 {[%emt 0:08:23]} Nxa7 {[%emt 0:02:24]} 15. Nxa5 {[%emt 0:03:47]} b6 {[%emt 0:04:21]} 16. Nc4 {[%emt 0:02:53]} Nc6 {[%emt 0:02:16]} 17. Qc2 {[%emt 0:04:55]} Na5 {[%emt 0:04:43]} 18. Nxa5 {[%emt 0:01:47]} Rxa5 {[%emt 0:08:48]} 19. Bxe6 {[%emt 0:01:18]} Rxe6 {[%emt 0:00:32]} 20. d4 {[%emt 0:02:04]} exd4 {[%emt 0:01:08]} 21. Nxd4 {[%emt 0:04:31]} Re8 {[%emt 0:01:11]} 22. b3 {[%emt 0:01:53]} c5 {[%emt 0:01:36]} 23. Nf5 {[%emt 0:03:28]} b5 {[%emt 0:03:19]} 24. Rad1 {[%emt 0:00:46]} Re6 {[%emt 0:01:43]} 25. axb5 {[%emt 0:02:15]} Rxb5 {[%emt 0:00:38]} 26. e5 {[%emt 0:00:51]} Nh7 {[%emt 0:02:05]} 27. Nxd6 {[%emt 0:00:51]} Rb8 {[%emt 0:03:14]} 28. c4 {[%emt 0:01:38]} Rg6 {[%emt 0:01:15]} 29. Kh2 {[%emt 0:03:56]} Qc6 {[%emt 0:01:57]} 30. f3 {[%emt 0:02:03]} Rd8 {[%emt 0:00:57]} 31. Qf5 {[%emt 0:02:36]} Rd7 {[%emt 0:02:10]} 32. e6 {[%emt 0:05:44]} fxe6 {[%emt 0:03:24]} 33. Rxe6 {[%emt 0:01:26]} Rxe6 {[%emt 0:00:56]} 34. Qxe6+ {[%emt 0:00:20]} Kh8 {[%emt 0:00:36]} 35. Nf7+ {[%emt 0:00:19]} Rxf7 {[%emt 0:01:25]} 36. Rd8+ {[%emt 0:00:28]} Rf8 {[%emt 0:00:53]} 37. Rxf8+ {[%emt 0:00:07]} Nxf8 {[%emt 0:00:10]} 38. Qxc6 {[%emt 0:00:03]} Kh7 {[%emt 0:00:19]} 39. Qxc5 {[%emt 0:00:10]} Ng6 {[%emt 0:00:28]} 40. Qf5 {[%emt 0:00:00]} Kh8 {[%emt 0:00:00]} 41. Qxg6 {[%emt 0:00:08]} Kg8 {[%emt 0:01:12]} 42. c5 {[%emt 0:00:05]} Kf8 {[%emt 0:00:11]} 43. Qe6 {[%emt 0:00:07]} h5 {[%emt 0:00:29]} 44. c6 {[%emt 0:00:05]} h4 {[%emt 0:00:20]} 45. c7 {[%emt 0:00:09]} g5 {[%emt 0:00:16]} 46. Qd7 {[%emt 0:00:06]} Kg8 {[%emt 0:00:17]} 47. c8=R# {[%emt 0:00:07]} 1-0

[Event "European Womens-ch 2025"]
[Site "Rhodes"]
[Date "2025.04.01"]
[Round "2.67"]
[White "Revelioti, Eleni Nefeli"]
[Black "Huseynova, Lala"]
[Result "0-1"]
[Annotator "NA RC"]
[ECO "B90"]
[WhiteElo "1470"]
[BlackElo "2065"]
[PlyCount "68"]
[EventDate "2025.03.29"]
[EventType "swiss"]
[EventCountry "GRE"]
[SourceTitle "playchess.com"]
[Source "ChessBase"]
[SourceQuality "1"]
[TimeControl "40/5400+30:1800+30"]

1. e4 {[%emt 0:00:12]} c5 {[%emt 0:00:20]} 2. Nf3 {[%emt 0:00:17]} d6 {[%emt 0:00:04]} 3. d4 {[%emt 0:00:56]} cxd4 {[%emt 0:00:07]} 4. Nxd4 {[%emt 0:00:19]} Nf6 {[%emt 0:00:07]} 5. Nc3 {[%emt 0:00:44]} a6 {[%emt 0:00:03]} 6. Be2 {[%emt 0:02:18]} e5 {[%emt 0:00:14]} 7. Nf3 {[%emt 0:00:55]} Be7 {[%emt 0:01:31]} 8. Be3 {[%emt 0:02:02]} Qc7 {[%emt 0:01:26]} 9. O-O {[%emt 0:04:57]} O-O {[%emt 0:02:58]} 10. a4 {[%emt 0:02:48]} b6 {[%emt 0:01:18]} 11. Qd2 {[%emt 0:03:48]} Nbd7 {[%emt 0:02:52]} 12. Rfe1 {[%emt 0:05:59]} Bb7 {[%emt 0:01:26]} 13. Bd3 {[%emt 0:01:58]} Rfe8 {[%emt 0:06:15]} 14. h3 {[%emt 0:06:09]} Nc5 {[%emt 0:07:20]} 15. Bxc5 {[%emt 0:11:25]} Qxc5 {[%emt 0:01:07]} 16. Qe3 {[%emt 0:05:18]} Qc7 {[%emt 0:03:19]} 17. b3 {[%emt 0:05:19]} Qxc3 {[%emt 0:00:50]} 18. Qxb6 {[%emt 0:04:01]} Bxe4 {[%emt 0:02:20]} 19. Qe3 {[%emt 0:08:09]} Bxd3 {[%emt 0:03:12]} 20. Qxd3 {[%emt 0:00:36]} Qxd3 {[%emt 0:00:07]} 21. cxd3 {[%emt 0:00:13]} Rab8 {[%emt 0:00:10]} 22. Rab1 {[%emt 0:00:17]} Nd5 {[%emt 0:00:18]} 23. Rec1 {[%emt 0:00:53]} a5 {[%emt 0:01:58]} 24. Nd2 {[%emt 0:01:00]} Bg5 {[%emt 0:00:07]} 25. Rc2 {[%emt 0:32:27]} Nb4 {[%emt 1:03:31]} 26. Rcb2 {[%emt 0:00:00]} Nxd3 {[%emt 0:00:00]} 27. Rc2 {[%emt 0:01:00]} Nb4 {[%emt 0:01:00]} 28. Rcb2 {[%emt 0:00:00]} d5 {[%emt 0:00:00]} 29. Nf3 {[%emt 0:00:00]} Bf6 {[%emt 0:00:00]} 30. Re2 {[%emt 0:00:00]} e4 {[%emt 0:00:00]} 31. Nd2 {[%emt 0:00:00]} Bd4 {[%emt 0:00:00]} 32. Rd1 {[%emt 0:00:00]} Nd3 {[%emt 0:00:00]} 33. Rb1 {[%emt 0:03:00]} Nf4 {[%emt 0:00:00]} 34. Ree1 {[%emt 0:00:00]} e3 {[%emt 0:00:00]} 0-1